bitfinex/quotes_BTCUSD_20241003
["timestamp","ask_amount","ask_price","bid_price","bid_amount"]
[1727968343725,0.01752579,60239.0,60238.0,0.45219471]
[1727968343945,0.01753848,60248.0,60246.0,0.33197]
[1727968344211,0.001636,60263.0,60255.0,0.165961]
[1727968344445,0.001636,60263.0,60255.0,0.55224346]
[1727968344446,0.28372674,60256.0,60255.0,0.55224346]
[1727968344681,0.28372674,60256.0,60255.0,0.58557346]
[1727968344682,0.03500558,60256.0,60255.0,0.58557346]
[1727968345164,0.03500558,60256.0,60255.0,0.55224346]
[1727968345417,0.03500558,60256.0,60255.0,0.265961]
[1727968345669,0.01851815,60256.0,60255.0,0.278961]
[1727968345922,0.01850342,60256.0,60255.0,0.278961]
[1727968346139,0.01850342,60256.0,60255.0,0.178961]
[1727968346393,0.01848568,60256.0,60255.0,0.168961]
[1727968346646,0.001,60256.0,60255.0,0.168961]
[1727968346860,0.001636,60263.0,60262.0,0.165942]
[1727968347082,0.0191438,60263.0,60255.0,0.00829158]
[1727968347297,0.18512422,60263.0,60262.0,0.00828384]
[1727968347565,0.03674375,60263.0,60258.0,0.331903]
[1727968347785,0.001636,60263.0,60262.0,0.165942]
[1727968348009,0.0367676,60263.0,60262.0,0.165942]
[1727968348221,0.0367676,60263.0,60262.0,0.17424941]
[1727968348444,0.0387676,60263.0,60262.0,0.17424941]
[1727968349787,0.001636,60263.0,60262.0,0.17424941]
[1727968350012,0.01910899,60263.0,60262.0,0.17424941]
[1727968350249,0.03754636,60263.0,60262.0,0.01430741]
[1727968350478,0.44187207,60263.0,60262.0,0.01430741]
[1727968350705,0.69675878,60263.0,60262.0,0.00830741]
[1727968350923,0.69775878,60263.0,60262.0,0.01]
[1727968351393,0.69775878,60263.0,60249.0,0.58067316]
[1727968351394,0.331921,60256.0,60251.0,0.165971]
[1727968351609,0.165964,60254.0,60251.0,0.165971]
[1727968351840,0.165964,60254.0,60250.0,0.24872116]
[1727968351841,0.01740163,60253.0,60250.0,0.24872116]
[1727968352067,0.32915071,60254.0,60250.0,0.24872116]
[1727968352068,0.01740163,60252.0,60250.0,0.165973]
[1727968352324,0.18336826,60251.0,60247.0,0.000817]
[1727968352577,0.01739526,60250.0,60247.0,0.000817]
[1727968352819,0.01739526,60249.0,60247.0,0.000817]
[1727968353043,0.01739526,60248.0,60247.0,0.000817]
[1727968353275,0.18334614,60248.0,60247.0,0.000817]
[1727968353502,0.20071576,60248.0,60247.0,0.000817]
[1727968353726,0.68182966,60248.0,60247.0,0.000817]
[1727968354005,0.53730247,60248.0,60247.0,0.005817]
[1727968354438,0.37411576,60248.0,60247.0,0.000817]
[1727968354650,0.13113576,60248.0,60247.0,0.000817]
[1727968354872,0.11576614,60248.0,60247.0,0.000817]
[1727968355094,0.28174614,60248.0,60247.0,0.000817]
[1727968355352,0.26438,60248.0,60247.0,0.000817]
[1727968355580,0.84160658,60248.0,60247.0,0.000817]
[1727968356232,0.166021,60233.0,60232.0,0.24872116]
[1727968356451,0.32920771,60233.0,60232.0,0.24872116]
[1727968356883,0.166027,60232.0,60227.0,0.166037]
[1727968357103,0.166027,60232.0,60228.0,0.166035]
[1727968357321,0.166027,60232.0,60223.0,0.332098]
[1727968357322,0.33205,60232.0,60223.0,0.332098]
[1727968357572,0.33205,60232.0,60222.0,0.24872116]
[1727968357573,0.16318671,60233.0,60222.0,0.24872116]
[1727968357830,0.16318671,60232.0,60222.0,0.332103]
[1727968358077,0.16318671,60232.0,60203.0,0.002]
[1727968358078,0.166058,60220.0,60217.0,0.166065]
[1727968358333,0.1686,60231.0,60223.0,0.24872116]
[1727968358334,0.332079,60227.0,60223.0,0.24872116]
[1727968358582,0.1686,60231.0,60210.0,0.332166]
[1727968358583,0.332113,60221.0,60210.0,0.332166]
[1727968358846,0.16318671,60226.0,60214.0,0.24872116]
[1727968359163,0.1686,60231.0,60212.0,0.166078]
[1727968359164,0.166068,60217.0,60212.0,0.166078]
[1727968359353,0.166068,60217.0,60204.0,0.332203]
[1727968359354,0.166086,60210.0,60206.0,0.166095]
[1727968359822,0.16318671,60217.0,60204.0,0.332203]
[1727968359823,0.16609,60208.0,60204.0,0.1661]
[1727968359825,0.16609,60208.0,60203.0,0.166103]
[1727968360061,0.1761,60214.0,60201.0,0.33222]
[1727968360297,0.166091,60208.0,60204.0,0.166101]
[1727968360534,0.009,60210.0,60207.0,0.001]
[1727968360811,0.009,60210.0,60207.0,0.167092]
[1727968361080,0.332118,60220.0,60208.0,0.04913175]
[1727968361319,0.25572116,60214.0,60213.0,0.166077]
[1727968361555,0.007,60214.0,60213.0,0.166077]
[1727968362457,0.02603042,60218.0,60217.0,0.166066]
[1727968363170,0.24872116,60229.0,60228.0,0.166035]
[1727968363426,0.27474857,60229.0,60228.0,0.166035]
[1727968363652,0.02602741,60229.0,60228.0,0.166035]
[1727968363873,0.24872116,60235.0,60222.0,0.1]
[1727968364092,0.24872116,60235.0,60234.0,0.166019]
[1727968364093,0.02602386,60235.0,60234.0,0.166019]
[1727968364340,0.04350067,60235.0,60234.0,0.166019]
[1727968364560,0.04350067,60235.0,60230.0,0.332059]
[1727968364561,0.04350067,60235.0,60232.0,0.166023]
[1727968364783,0.02602386,60235.0,60234.0,0.166019]
[1727968365000,0.02602386,60235.0,60229.0,0.00537462]
[1727968365001,0.04351576,60235.0,60232.0,0.166022]
[1727968365232,0.02602386,60235.0,60234.0,0.166019]
[1727968365472,0.06096637,60235.0,60234.0,0.166019]
[1727968366139,0.02602386,60235.0,60234.0,0.166019]
[1727968366361,0.04354639,60235.0,60234.0,0.166019]
[1727968366600,0.06502165,60235.0,60234.0,0.166019]
[1727968366882,0.03899779,60235.0,60234.0,0.166019]
[1727968367110,0.03499779,60235.0,60234.0,0.166019]
[1727968367331,0.02249779,60235.0,60234.0,0.170019]
[1727968368477,0.02249779,60235.0,60234.0,0.43320571]
[1727968368751,0.02249779,60235.0,60234.0,0.5528763]
[1727968369007,0.24872116,60247.0,60246.0,0.165986]
[1727968369291,0.24872116,60254.0,60253.0,0.165966]
[1727968369765,0.24872116,60261.0,60251.0,0.77342841]
[1727968369995,0.24872116,60261.0,60255.0,0.165961]
[1727968371056,0.0260109,60267.0,60255.0,0.165961]
[1727968371291,0.002634,60256.0,60255.0,0.174961]
[1727968371534,0.002634,60256.0,60255.0,0.18036238]
[1727968371772,0.002634,60256.0,60255.0,0.34354909]
[1727968372265,0.002634,60256.0,60255.0,0.18036238]
[1727968372533,0.002634,60256.0,60255.0,0.17136238]
[1727968372783,0.001634,60256.0,60255.0,0.33454909]
[1727968373055,0.002634,60256.0,60255.0,0.18536238]
[1727968373292,0.001634,60256.0,60255.0,0.17136238]
[1727968373533,0.001634,60256.0,60255.0,0.34554909]
[1727968373750,0.002634,60256.0,60255.0,0.34554909]
[1727968373975,0.002634,60256.0,60255.0,0.44554909]
[1727968374197,0.001634,60256.0,60255.0,0.43454909]
[1727968374434,0.002634,60256.0,60255.0,0.44854909]
[1727968376228,0.001634,60256.0,60255.0,0.43454909]
[1727968376458,0.002634,60256.0,60255.0,0.44554909]
[1727968376965,0.001634,60256.0,60255.0,0.46787909]
[1727968377188,0.001634,60256.0,60255.0,0.43454909]
[1727968377411,0.002634,60256.0,60255.0,0.18536238]
[1727968378087,0.002634,60256.0,60255.0,0.179961]
[1727968378583,0.002634,60256.0,60255.0,0.165961]
[1727968378584,0.001634,60256.0,60255.0,0.165961]
[1727968379039,0.001634,60256.0,60255.0,0.176961]
[1727968379040,0.002634,60256.0,60255.0,0.176961]
[1727968379487,0.001634,60256.0,60255.0,0.165961]
[1727968379924,0.001634,60256.0,60255.0,0.170961]
[1727968380154,0.001634,60256.0,60255.0,0.17427986]
[1727968380820,0.01927999,60256.0,60255.0,0.17427986]
[1727968381048,0.01927999,60256.0,60255.0,0.005]
[1727968381279,0.1824667,60256.0,60255.0,0.005]
[1727968381521,0.24363549,60256.0,60255.0,0.005]
[1727968381743,0.20022782,60256.0,60255.0,0.005]
[1727968381971,0.20022782,60256.0,60245.0,0.165987]
[1727968382241,0.19859382,60255.0,60246.0,0.24872116]
[1727968382453,0.03540711,60254.0,60246.0,0.24872116]
[1727968382674,0.001634,60256.0,60245.0,0.331974]
[1727968382675,0.19859382,60253.0,60245.0,0.331974]
[1727968382899,0.03540711,60252.0,60250.0,0.165973]
[1727968383120,0.19859382,60251.0,60244.0,0.331982]
[1727968383341,0.03540711,60250.0,60249.0,0.165977]
[1727968383564,0.03540711,60250.0,60240.0,0.4712]
[1727968383790,0.03540711,60249.0,60247.0,0.165981]
[1727968384017,0.16318671,60251.0,60247.0,0.165983]
[1727968384018,0.03540711,60248.0,60247.0,0.165983]
[1727968384256,0.2184532,60248.0,60239.0,0.332009]
[1727968384483,0.28630078,60245.0,60231.0,0.24872116]
[1727968384763,0.1808327,60244.0,60238.0,0.24872116]
[1727968384984,0.10164657,60243.0,60233.0,0.166019]
[1727968385203,0.245487,60246.0,60231.0,0.58077116]
[1727968385204,0.16318671,60242.0,60235.0,0.332031]
[1727968385421,0.24872116,60241.0,60231.0,0.33205]
[1727968385639,0.16318671,60240.0,60233.0,0.33204]
[1727968385868,0.03520117,60239.0,60235.0,0.166015]
[1727968386090,0.03525899,60238.0,60232.0,0.24872116]
[1727968386311,0.0795,60246.0,60242.0,0.331994]
[1727968386545,0.03524845,60245.0,60244.0,0.165991]
[1727968387664,0.03524845,60245.0,60244.0,0.45229178]
[1727968388102,0.03524845,60245.0,60244.0,0.55229178]
[1727968388785,0.03524845,60245.0,60244.0,0.7208719]
[1727968389022,0.03524845,60245.0,60244.0,0.7438719]
[1727968389271,0.01864031,60245.0,60244.0,0.49790112]
[1727968389521,0.001,60245.0,60244.0,0.49790112]
[1727968390006,0.24872116,60260.0,60245.0,0.023]
[1727968390239,0.24872116,60260.0,60255.0,0.165961]
[1727968390479,0.03526885,60259.0,60255.0,0.165961]
[1727968390697,0.03691997,60256.0,60255.0,0.165961]
[1727968390917,0.01923606,60256.0,60255.0,0.165961]
[1727968391630,0.001634,60256.0,60255.0,0.165961]
[1727968391861,0.01923683,60256.0,60255.0,0.165961]
[1727968392535,0.001634,60256.0,60255.0,0.165961]
[1727968392986,0.08,60255.0,60234.0,0.000817]
[1727968393225,0.28630078,60251.0,60242.0,0.24872116]
[1727968393456,0.18075607,60250.0,60243.0,0.24872116]
[1727968393718,0.18075607,60250.0,60234.0,0.000817]
[1727968393719,0.01756936,60249.0,60239.0,0.332008]
[1727968393942,0.01756936,60249.0,60234.0,0.000817]
[1727968393943,0.18075607,60248.0,60238.0,0.166005]
[1727968394162,0.035231,60247.0,60242.0,0.165995]
[1727968394395,0.42947723,60246.0,60240.0,0.166002]
[1727968394617,0.01756936,60245.0,60234.0,0.000817]
[1727968394859,0.41190787,60244.0,60234.0,0.000817]
[1727968395088,0.0928,60243.0,60236.0,0.332025]
[1727968395314,0.25598671,60243.0,60242.0,0.165997]
[1727968395786,0.0928,60243.0,60242.0,0.165997]
[1727968396003,0.11881894,60243.0,60242.0,0.165997]
[1727968396234,0.153941,60243.0,60242.0,0.165997]
[1727968396694,0.153941,60243.0,60242.0,0.167997]
[1727968397373,0.153941,60243.0,60242.0,0.002]
[1727968398095,0.15394153,60243.0,60242.0,0.002]
[1727968398327,0.166011,60237.0,60234.0,0.000817]
[1727968398555,0.45231678,60235.0,60234.0,0.000817]
[1727968398809,0.82012608,60235.0,60234.0,0.000817]
[1727968400248,0.5338253,60235.0,60234.0,0.000817]
[1727968400481,0.5338253,60235.0,60220.0,0.332114]
[1727968400482,0.3908093,60235.0,60203.0,0.24872116]
[1727968400714,0.28630078,60230.0,60223.0,0.24872116]
[1727968400962,0.20115559,60229.0,60221.0,0.332105]
[1727968401197,0.20115559,60229.0,60219.0,0.33212]
[1727968401198,0.01754495,60228.0,60222.0,0.16605]
[1727968401427,0.03513016,60228.0,60221.0,0.166054]
[1727968401652,0.01751206,60227.0,60224.0,0.166046]
[1727968401879,0.01751206,60227.0,60215.0,0.24872116]
[1727968401880,0.18077811,60227.0,60222.0,0.16605]
[1727968402103,0.0351055,60226.0,60223.0,0.166048]
[1727968402335,0.0175914,60225.0,60224.0,0.166046]
[1727968402579,0.03510859,60225.0,60221.0,0.000817]
[1727968402815,0.03510859,60224.0,60221.0,0.000817]
[1727968403036,0.41475016,60231.0,60224.0,0.166044]
[1727968403256,0.19823248,60230.0,60223.0,0.332096]
[1727968403490,0.1695,60235.0,60224.0,0.00332064]
[1727968403713,0.007,60227.0,60226.0,0.166041]
[1727968403972,0.007,60227.0,60226.0,0.51640764]
[1727968404203,0.02456985,60227.0,60226.0,0.266041]
[1727968404425,0.02456985,60227.0,60226.0,0.26768648]
[1727968404426,0.007,60227.0,60226.0,0.26768648]
[1727968404656,0.02460133,60227.0,60226.0,0.26768648]
[1727968404886,0.007,60227.0,60226.0,0.43287319]
[1727968405136,0.01759513,60238.0,60226.0,0.26318671]
[1727968405357,0.24872116,60229.0,60228.0,0.166035]
[1727968405575,0.005,60231.0,60230.0,0.16603]
[1727968405788,0.02253538,60231.0,60230.0,0.16603]
[1727968406012,0.02259082,60231.0,60230.0,0.16603]
[1727968406235,0.04012838,60231.0,60230.0,0.26603]
[1727968406479,0.04012838,60231.0,60230.0,0.42921671]
[1727968406923,0.02259082,60231.0,60230.0,0.42921671]
[1727968407146,0.01759082,60231.0,60230.0,0.26603]
[1727968407373,0.24872116,60238.0,60230.0,0.26603]
[1727968407374,0.01762029,60237.0,60234.0,0.332037]
[1727968407593,0.24872116,60238.0,60237.0,0.16601]
[1727968408073,0.03522164,60238.0,60237.0,0.16601]
[1727968408305,0.03522164,60238.0,60237.0,0.47682701]
[1727968408526,0.03522164,60238.0,60237.0,0.45419671]
[1727968408527,0.03524355,60238.0,60237.0,0.45419671]
[1727968408755,0.24872116,60253.0,60252.0,0.165969]
[1727968408971,0.28396701,60253.0,60252.0,0.165969]
[1727968409408,0.03524585,60253.0,60252.0,0.165969]
[1727968409651,0.03524585,60253.0,60250.0,0.331949]
[1727968409884,0.03524585,60252.0,60251.0,0.165972]
[1727968410382,0.03524585,60252.0,60237.0,0.1]
[1727968410603,0.03524585,60252.0,60245.0,0.331973]
[1727968410604,0.01764999,60252.0,60245.0,0.331973]
[1727968410820,0.1808367,60251.0,60248.0,0.165979]
[1727968411037,0.165973,60251.0,60248.0,0.165979]
[1727968411271,0.03536951,60250.0,60235.0,0.1]
[1727968411489,0.001,60253.0,60252.0,0.165969]
[1727968411735,0.001634,60255.0,60252.0,0.165967]
[1727968411962,0.24872116,60253.0,60251.0,0.167971]
[1727968412177,0.24872116,60253.0,60251.0,0.002]
[1727968412178,0.20131972,60252.0,60251.0,0.002]
[1727968412412,0.06385272,60252.0,60250.0,0.165973]
[1727968412617,0.06389009,60251.0,60248.0,0.331956]
[1727968412842,0.0913,60247.0,60246.0,0.165986]
[1727968413115,0.10894128,60247.0,60245.0,0.165987]
[1727968413342,0.10894128,60247.0,60230.0,0.332058]
[1727968413343,0.03546098,60246.0,60230.0,0.332058]
[1727968413574,0.18082799,60245.0,60226.0,0.24872116]
[1727968413805,0.332012,60239.0,60233.0,0.24872116]
[1727968414030,0.332012,60239.0,60226.0,0.24872116]
[1727968414031,0.332024,60237.0,60226.0,0.24872116]
[1727968414258,0.166022,60233.0,60229.0,0.16603]
[1727968414510,0.166038,60228.0,60221.0,0.000817]
[1727968414725,0.49523571,60232.0,60221.0,0.000817]
[1727968414726,0.1774,60229.0,60221.0,0.000817]
[1727968414958,0.34058671,60229.0,60225.0,0.166042]
[1727968415174,0.34058671,60229.0,60226.0,0.16604]
[1727968415390,0.4338972,60229.0,60226.0,0.16604]
[1727968415633,0.4338972,60229.0,60221.0,0.332923]
[1727968415865,0.4338972,60229.0,60221.0,0.000817]
[1727968415866,0.33209,60225.0,60221.0,0.000817]
[1727968416100,0.16318671,60228.0,60221.0,0.166871]
[1727968416371,0.166042,60226.0,60221.0,0.000817]
[1727968416591,0.166045,60225.0,60221.0,0.166871]
[1727968417032,0.01766315,60224.0,60221.0,0.166871]
[1727968417249,0.01766315,60223.0,60222.0,0.166051]
[1727968417473,0.01766315,60223.0,60221.0,0.000817]
[1727968417699,0.01766315,60223.0,60222.0,0.166052]
[1727968417926,0.0176269,60224.0,60223.0,0.166049]
[1727968418179,0.03523883,60224.0,60223.0,0.166049]
[1727968418395,0.05278262,60224.0,60223.0,0.166049]
[1727968419281,0.21982862,60224.0,60223.0,0.005]
[1727968419512,0.05378262,60224.0,60223.0,0.01590582]
[1727968419730,0.05278262,60224.0,60223.0,0.00749805]
[1727968419947,0.05278262,60224.0,60223.0,0.01049805]
[1727968420181,0.05278262,60224.0,60223.0,0.17654705]
[1727968421548,0.03515572,60224.0,60223.0,0.17654705]
[1727968421793,0.03515572,60224.0,60223.0,0.17354705]
[1727968422070,0.03515572,60224.0,60223.0,0.33673376]
[1727968422295,0.03515572,60224.0,60223.0,0.45973376]
[1727968422296,0.001,60224.0,60223.0,0.45973376]
[1727968422513,0.001,60224.0,60223.0,0.43673376]
[1727968422740,0.24872116,60234.0,60233.0,0.166021]
[1727968422984,0.0962,60248.0,60241.0,0.165999]
[1727968423213,0.26629005,60242.0,60239.0,0.332009]
[1727968423496,0.26629005,60242.0,60241.0,0.00741826]
[1727968423497,0.41471816,60242.0,60241.0,0.00741826]
[1727968423718,0.20123759,60242.0,60240.0,0.00741937]
[1727968423944,0.01761657,60241.0,60238.0,0.332013]
[1727968424196,0.332002,60241.0,60236.0,0.166011]
[1727968424428,0.0962,60248.0,60240.0,0.332004]
[1727968424652,0.34492116,60248.0,60233.0,0.00533769]
[1727968424882,0.34492116,60248.0,60230.0,0.28630078]
[1727968424883,0.09216481,60247.0,60246.0,0.165986]
[1727968425327,0.09216481,60247.0,60246.0,0.00739926]
[1727968425762,0.09216481,60247.0,60246.0,0.165986]
[1727968425982,0.09816481,60247.0,60246.0,0.17438526]
[1727968426423,0.09816481,60247.0,60246.0,0.17805053]
[1727968427099,0.06976465,60247.0,60246.0,0.17805053]
[1727968427557,0.06990388,60247.0,60246.0,0.17805053]
[1727968428037,0.05201455,60247.0,60246.0,0.46435131]
[1727968428258,0.03439454,60247.0,60246.0,0.56435131]
[1727968428488,0.03439454,60247.0,60246.0,0.72753802]
[1727968428979,0.03439454,60247.0,60246.0,0.78381802]
[1727968429212,0.02839454,60247.0,60246.0,0.77175349]
[1727968429709,0.001634,60255.0,60254.0,0.288964]
[1727968429967,0.001634,60255.0,60254.0,0.77282712]
[1727968430186,0.001634,60255.0,60254.0,0.77173149]
[1727968430403,0.001634,60255.0,60254.0,0.77373149]
[1727968431093,0.001636,60263.0,60262.0,0.002]
[1727968431348,0.001636,60263.0,60262.0,0.77370949]
[1727968432886,0.002636,60263.0,60262.0,0.78170949]
[1727968433420,0.002636,60263.0,60262.0,0.78370949]
[1727968434206,0.002636,60263.0,60262.0,0.78870949]
[1727968434479,0.24872116,60283.0,60275.0,0.1]
[1727968434728,0.24872116,60283.0,60282.0,0.55218678]
[1727968435046,0.24872116,60283.0,60282.0,0.265886]
[1727968435252,0.001636,60288.0,60287.0,0.165873]
[1727968435985,0.001636,60288.0,60286.0,0.165875]
[1727968436225,0.001636,60288.0,60284.0,0.16588]
[1727968436499,0.001636,60288.0,60272.0,0.005]
[1727968436500,0.25818671,60287.0,60275.0,0.003]
[1727968436793,0.25818671,60287.0,60278.0,0.331794]
[1727968436794,0.0751,60282.0,60278.0,0.331794]
[1727968437053,0.16589,60281.0,60276.0,0.24872116]
[1727968437290,0.0751,60282.0,60275.0,0.003]
[1727968437553,0.1808367,60281.0,60275.0,0.003]
[1727968437807,0.1808367,60281.0,60269.0,0.00537225]
[1727968437808,0.165901,60277.0,60271.0,0.331833]
[1727968438064,0.331789,60280.0,60271.0,0.331833]
[1727968438322,0.16318671,60281.0,60270.0,0.331839]
[1727968438584,0.16318671,60281.0,60269.0,0.00537225]
[1727968438585,0.41190787,60279.0,60269.0,0.1]
[1727968438865,0.165913,60273.0,60269.0,0.1]
[1727968439074,0.331802,60277.0,60275.0,0.001]
[1727968439075,0.165903,60276.0,60275.0,0.001]
[1727968439555,0.165903,60276.0,60271.0,0.1]
[1727968439556,0.165914,60272.0,60271.0,0.1]
[1727968440014,0.331824,60273.0,60269.0,0.001]
[1727968440268,0.24872116,60276.0,60269.0,0.001]
[1727968440554,0.16592,60270.0,60269.0,0.001]
[1727968440849,0.34673979,60270.0,60269.0,0.001]
[1727968441077,0.16595,60259.0,60258.0,0.24872116]
[1727968441357,0.331869,60265.0,60258.0,0.24872116]
[1727968441618,0.3467673,60264.0,60260.0,0.165946]
[1727968441858,0.3467673,60264.0,60257.0,0.331908]
[1727968441859,0.18358459,60263.0,60259.0,0.16595]
[1727968442127,0.01764149,60262.0,60259.0,0.165949]
[1727968442355,0.331855,60268.0,60263.0,0.165938]
[1727968442690,0.0933,60269.0,60254.0,0.38630078]
[1727968442691,0.24872116,60267.0,60254.0,0.38630078]
[1727968442879,0.167936,60264.0,60260.0,0.165945]
[1727968443142,0.002,60264.0,60256.0,0.1]
[1727968443419,0.002,60264.0,60263.0,0.165939]
[1727968444197,0.347497,60279.0,60263.0,0.1]
[1727968444476,0.347497,60279.0,60275.0,0.165906]
[1727968444477,0.1816,60279.0,60275.0,0.165906]
[1727968444729,0.01756733,60276.0,60275.0,1.04720449]
[1727968444996,0.084336,60301.0,60282.0,0.265886]
[1727968445242,0.084336,60301.0,60282.0,0.74037349]
[1727968445476,0.001636,60301.0,60282.0,0.74582157]
[1727968446748,0.001636,60301.0,60287.0,0.293873]
[1727968446992,0.001636,60301.0,60291.0,0.58016278]
[1727968447278,0.001636,60301.0,60291.0,0.71534949]
[1727968447720,0.001636,60301.0,60291.0,0.72034949]
[1727968447977,0.001636,60301.0,60291.0,0.71534949]
[1727968448248,0.001636,60301.0,60291.0,0.265862]
[1727968448527,0.001636,60301.0,60291.0,0.71534949]
[1727968448773,0.001636,60301.0,60291.0,0.74863961]
[1727968449075,0.001636,60301.0,60292.0,0.002]
[1727968449277,0.25035916,60304.0,60303.0,0.165829]
[1727968449278,0.001638,60304.0,60303.0,0.165829]
[1727968449566,0.001638,60304.0,60303.0,0.48529571]
[1727968449816,0.001638,60304.0,60303.0,0.48729571]
[1727968450379,0.0831,60329.0,60303.0,0.48729571]
[1727968450380,0.04079904,60309.0,60308.0,0.61339578]
[1727968450614,0.0357883,60309.0,60308.0,0.77658249]
[1727968451362,0.093,60337.0,60321.0,0.123]
[1727968451667,0.093,60337.0,60323.0,0.322054]
[1727968451861,0.093,60337.0,60327.0,0.55206378]
[1727968452418,0.0002,60339.0,60327.0,0.57506378]
[1727968452674,0.0002,60339.0,60327.0,0.65530916]
[1727968452925,0.0002,60339.0,60327.0,0.60834378]
[1727968453403,0.0002,60339.0,60327.0,0.65530916]
[1727968453692,0.24872116,60334.0,60327.0,0.74853049]
[1727968453931,0.001817,60328.0,60327.0,0.76253049]
[1727968454476,0.001817,60328.0,60327.0,0.72925049]
[1727968454742,0.001817,60328.0,60327.0,0.73663329]
[1727968455038,0.001817,60328.0,60327.0,0.73463329]
[1727968455314,0.000817,60328.0,60327.0,0.72063329]
[1727968455585,0.000817,60328.0,60327.0,0.78191329]
[1727968455817,0.001817,60328.0,60327.0,0.79591329]
[1727968456308,0.000817,60328.0,60327.0,0.72063329]
[1727968456555,0.001817,60328.0,60327.0,0.73463329]
[1727968457023,0.000817,60328.0,60327.0,0.72063329]
[1727968457491,0.00043666,60328.0,60327.0,0.72063329]
[1727968458471,0.00143666,60328.0,60327.0,0.57144658]
[1727968458967,0.00043666,60328.0,60327.0,0.55744658]
[1727968459197,0.00043666,60328.0,60327.0,0.57144658]
[1727968459198,0.00143666,60328.0,60327.0,0.57144658]
[1727968459489,0.00143666,60328.0,60327.0,0.2851458]
[1727968459717,0.00043666,60328.0,60327.0,0.2711458]
[1727968459942,0.00143666,60328.0,60327.0,0.2851458]
[1727968460405,0.00143666,60328.0,60327.0,0.73463329]
[1727968460644,0.00143666,60328.0,60327.0,0.76847962]
[1727968461104,0.00143666,60328.0,60327.0,0.74547962]
[1727968461336,0.00043666,60328.0,60327.0,0.56829291]
[1727968461797,0.00143666,60328.0,60327.0,0.58229291]
[1727968462302,0.00143666,60328.0,60327.0,0.29599213]
[1727968462539,0.00043666,60328.0,60327.0,0.1711458]
[1727968462795,0.00143666,60328.0,60327.0,0.178763]
[1727968463023,0.00143666,60328.0,60327.0,0.013]
[1727968463270,0.00043666,60328.0,60327.0,0.167395]
[1727968463503,0.00043666,60328.0,60327.0,0.001632]
[1727968464197,0.16619666,60328.0,60327.0,0.001632]
[1727968464431,0.00043666,60328.0,60327.0,0.001632]
[1727968464964,0.00043666,60328.0,60327.0,0.167395]
[1727968465198,0.00043666,60328.0,60327.0,0.171395]
[1727968465680,0.00043666,60328.0,60327.0,0.167395]
[1727968465935,0.00043666,60328.0,60327.0,0.002632]
[1727968466175,0.00043666,60328.0,60327.0,0.168395]
[1727968466419,0.00043666,60328.0,60327.0,0.167395]
[1727968466916,0.00043666,60328.0,60327.0,0.171395]
[1727968467911,0.00043666,60328.0,60327.0,0.45769578]
[1727968468629,0.00043666,60328.0,60327.0,0.5654295]
[1727968468872,0.00043666,60328.0,60327.0,0.5614295]
[1727968469107,0.00043666,60328.0,60327.0,0.5624295]
[1727968469565,0.00043666,60328.0,60327.0,0.5614295]
[1727968470041,0.00143666,60328.0,60327.0,0.28912872]
[1727968470277,0.00143666,60328.0,60327.0,0.17512872]
[1727968470278,0.00043666,60328.0,60327.0,0.17512872]
[1727968470776,0.00043666,60328.0,60327.0,0.18912872]
[1727968470777,0.00143666,60328.0,60327.0,0.18912872]
[1727968471737,0.07863666,60328.0,60327.0,0.02336572]
[1727968471979,0.09506087,60328.0,60327.0,0.17512872]
[1727968472209,0.01786087,60328.0,60327.0,0.18212872]
[1727968472440,0.01786087,60328.0,60327.0,0.4684295]
[1727968472678,0.01786087,60328.0,60327.0,0.4614295]
[1727968472912,0.01786087,60328.0,60327.0,0.5614295]
[1727968473162,0.00043666,60328.0,60327.0,0.5644295]
[1727968473641,0.00043666,60328.0,60327.0,0.5614295]
[1727968473875,0.00043666,60328.0,60327.0,0.5684295]
[1727968474359,0.01794647,60328.0,60327.0,0.5684295]
[1727968475116,0.01794647,60328.0,60327.0,0.5614295]
[1727968475347,0.01894647,60328.0,60327.0,0.5754295]
[1727968475825,0.01794647,60328.0,60327.0,0.5614295]
[1727968476285,0.01894647,60328.0,60327.0,0.5754295]
[1727968477250,0.00143666,60328.0,60327.0,0.76161621]
[1727968477498,0.01734947,60328.0,60327.0,0.76161621]
[1727968479378,0.01734947,60328.0,60327.0,0.47531543]
[1727968479636,0.01734947,60328.0,60327.0,0.76161621]
[1727968479876,0.01734947,60328.0,60327.0,0.73861621]
[1727968480406,0.03555934,60328.0,60327.0,0.73861621]
[1727968480644,0.03555934,60328.0,60327.0,0.76161621]
[1727968480879,0.00754177,60328.0,60327.0,0.76661621]
[1727968483771,0.24953816,60338.0,60327.0,0.57285321]
[1727968484001,0.24953816,60338.0,60337.0,0.165735]
[1727968484259,0.01910819,60338.0,60337.0,0.165735]
[1727968484489,0.048367,60338.0,60337.0,0.17316886]
[1727968484713,0.06233194,60338.0,60337.0,0.17316886]
[1727968485199,0.15703194,60338.0,60337.0,0.00743386]
[1727968485670,0.15803194,60338.0,60336.0,0.165737]
[1727968485933,0.26225,60338.0,60337.0,0.00743386]
[1727968486193,0.15658724,60338.0,60333.0,0.165745]
[1727968486438,0.242741,60335.0,60332.0,0.41446816]
[1727968486678,0.077,60335.0,60334.0,0.00743717]
[1727968486918,0.13815664,60335.0,60333.0,0.17318427]
[1727968487155,0.077,60335.0,60334.0,0.00743717]
[1727968487414,0.077,60335.0,60331.0,0.331501]
[1727968487415,0.28576354,60335.0,60331.0,0.16575]
[1727968487668,0.06119062,60334.0,60330.0,0.331506]
[1727968487934,0.06119062,60333.0,60331.0,0.165751]
[1727968488192,0.0321217,60332.0,60331.0,0.265751]
[1727968488431,0.06119062,60332.0,60331.0,0.265751]
[1727968489151,0.08717025,60332.0,60331.0,0.265751]
[1727968489384,0.06119062,60332.0,60331.0,0.265751]
[1727968489619,0.06219062,60332.0,60331.0,0.44337604]
[1727968489851,0.0331217,60332.0,60331.0,0.44337604]
[1727968490083,0.000817,60338.0,60337.0,0.165735]
[1727968490373,0.000817,60338.0,60337.0,0.55203578]
[1727968490597,0.01913659,60338.0,60337.0,0.55203578]
[1727968490835,0.01913659,60338.0,60337.0,0.60154231]
[1727968491086,0.01913659,60338.0,60337.0,0.55203578]
[1727968491318,0.01913659,60338.0,60337.0,0.62629558]
[1727968491548,0.01913659,60338.0,60337.0,0.55203578]
[1727968491785,0.01913659,60338.0,60337.0,0.62636313]